[Event "Saint Louis Blitz 2020"]
[Site "Saint Louis"]
[Date "2020.09.18"]
[Round "9"]
[White "Grischuk, Alexander"]
[Black "Aronian, Levon"]
[Result "1/2-1/2"]
[ECO "A05"]
[WhiteElo "2777"]
[BlackElo "2773"]
[Annotator "ChessBase"]
[PlyCount "93"]
[EventDate "2020.09.18"]
[EventType "blitz"]
[EventCountry "USA"]
[SourceTitle "playchess.com"]
[Source "ChessBase"]
[SourceQuality "1"]
[TimeControl "300+3"]

1. Nf3 {[%emt 0:00:03]} d5 {[%emt 0:00:03]} 2. g3 {[%emt 0:00:03]} Nf6 {
[%emt 0:00:01]} 3. Bg2 {[%emt 0:00:01]} g6 {[%emt 0:00:01]} 4. c4 {[%emt 0:00:
04]} dxc4 {[%emt 0:00:01]} 5. Na3 {[%emt 0:00:04]} Bg7 {[%emt 0:00:02]} 6. Nxc4
{[%emt 0:00:01]} c5 {[%emt 0:00:03]} 7. O-O {[%emt 0:00:16]} Nc6 {[%emt 0:00:
07]} 8. b3 {[%emt 0:00:11]} O-O {[%emt 0:00:17]} 9. Bb2 {[%emt 0:00:01]} Be6 {
[%emt 0:00:01]} 10. Rc1 {[%emt 0:00:05]} Rc8 {[%emt 0:00:02]} 11. d4 {[%emt 0:
00:19]} cxd4 {[%emt 0:00:38]} 12. Nxd4 {[%emt 0:00:02]} Nxd4 {[%emt 0:00:01]}
13. Qxd4 {[%emt 0:00:01]} b6 {[%emt 0:00:38]} 14. Na3 {[%emt 0:02:54]} Qxd4 {
[%emt 0:01:18]} 15. Bxd4 {[%emt 0:00:00]} Rfd8 {[%emt 0:00:02]} 16. Rxc8 {
[%emt 0:00:08]} Bxc8 {[%emt 0:00:02]} 17. e3 {[%emt 0:00:28]} Ba6 {[%emt 0:00:
05]} 18. Rc1 {[%emt 0:00:03]} Ne8 {[%emt 0:00:02]} 19. Bxg7 {[%emt 0:00:16]}
Kxg7 {[%emt 0:00:00]} 20. Bf1 {[%emt 0:00:00]} Bxf1 {[%emt 0:00:28]} 21. Kxf1 {
[%emt 0:00:00]} Rd5 {[%emt 0:00:16]} 22. Rc2 {[%emt 0:00:13]} Nd6 {[%emt 0:00:
04]} 23. Ke2 {[%emt 0:00:02]} Ra5 {[%emt 0:00:05]} 24. Nb1 {[%emt 0:00:02]} g5
{[%emt 0:00:07]} 25. h3 {[%emt 0:00:04]} Kf6 {[%emt 0:00:17]} 26. Nd2 {[%emt 0:
00:04]} Ke6 {[%emt 0:00:33]} 27. g4 {[%emt 0:00:04]} Kd7 {[%emt 0:00:07]} 28.
a4 {[%emt 0:00:15]} f6 {[%emt 0:00:26]} 29. f3 {[%emt 0:00:10]} Nb7 {[%emt 0:
00:05]} 30. Ne4 {[%emt 0:00:04]} Rd5 {[%emt 0:00:04]} 31. Rc1 {[%emt 0:00:04]}
Nd6 {[%emt 0:00:11]} 32. Nxd6 {[%emt 0:00:03]} Rxd6 {[%emt 0:00:03]} 33. h4 {
[%emt 0:00:04]} h6 {[%emt 0:00:04]} 34. h5 {[%emt 0:00:09]} Rc6 {[%emt 0:00:13]
} 35. Rd1+ {[%emt 0:00:16]} Kc7 {[%emt 0:00:06]} 36. Rd4 {[%emt 0:00:06]} Rc5 {
[%emt 0:00:07]} 37. Kd3 {[%emt 0:00:04]} e5 {[%emt 0:00:06]} 38. Rc4 {[%emt 0:
00:02]} Rxc4 {[%emt 0:00:01]} 39. Kxc4 {[%emt 0:00:03]} Kc6 {[%emt 0:00:01]}
40. b4 {[%emt 0:00:04]} a6 {[%emt 0:00:03]} 41. b5+ {[%emt 0:00:01]} axb5+ {
[%emt 0:00:01]} 42. axb5+ {[%emt 0:00:00]} Kd6 {[%emt 0:00:01]} 43. e4 {
[%emt 0:00:00]} Ke6 {[%emt 0:00:02]} 44. Kb4 {[%emt 0:00:01]} Kd6 {[%emt 0:00:
00]} 45. Kc4 {[%emt 0:00:01]} Ke6 {[%emt 0:00:01]} 46. Kb4 {[%emt 0:00:00]} Kd6
{[%emt 0:00:00]} 47. Kc4 {[%emt 0:00:00]} 1/2-1/2

[Event "Saint Louis Blitz 2020"]
[Site "Saint Louis"]
[Date "2020.09.18"]
[Round "9"]
[White "So, Wesley"]
[Black "Carlsen, Magnus"]
[Result "1/2-1/2"]
[ECO "C78"]
[WhiteElo "2770"]
[BlackElo "2863"]
[Annotator "RC"]
[PlyCount "59"]
[EventDate "2020.09.18"]
[EventType "blitz"]
[EventCountry "USA"]
[SourceTitle "playchess.com"]
[Source "ChessBase"]
[SourceQuality "1"]
[TimeControl "300+3"]

1. e4 {[%emt 0:00:03]} e5 {[%emt 0:00:03]} 2. Nf3 {[%emt 0:00:05]} Nc6 {
[%emt 0:00:01]} 3. Bb5 {[%emt 0:00:01]} a6 {[%emt 0:00:00]} 4. Ba4 {[%emt 0:00:
02]} Nf6 {[%emt 0:00:02]} 5. O-O {[%emt 0:00:01]} Bc5 {[%emt 0:00:06]} 6. c3 {
[%emt 0:00:02]} O-O {[%emt 0:00:01]} 7. d4 {[%emt 0:00:02]} Ba7 {[%emt 0:00:02]
} 8. dxe5 {[%emt 0:00:12]} Nxe4 {[%emt 0:00:01]} 9. Qd5 {[%emt 0:00:02]} Nc5 {
[%emt 0:00:01]} 10. Bc2 {[%emt 0:00:01]} Ne7 {[%emt 0:00:02]} 11. Qd1 {[%emt 0:
00:02]} d5 {[%emt 0:00:02]} 12. exd6 {[%emt 0:00:00]} Qxd6 {[%emt 0:00:01]} 13.
Qxd6 {[%emt 0:00:01]} cxd6 {[%emt 0:00:00]} 14. Rd1 {[%emt 0:00:18]} Bg4 {
[%emt 0:00:15]} 15. Be3 {[%emt 0:00:13]} Bxf3 {[%emt 0:00:10]} 16. gxf3 {
[%emt 0:00:00]} d5 {[%emt 0:00:03]} 17. Nd2 {[%emt 0:00:07]} Ne6 {[%emt 0:00:
01]} 18. Nb3 {[%emt 0:00:13]} Rfd8 {[%emt 0:00:04]} 19. Rd2 {[%emt 0:00:17]} d4
{[%emt 0:01:44]} 20. Nxd4 {[%emt 0:00:34]} Bxd4 {[%emt 0:00:02]} 21. Bxd4 {
[%emt 0:00:06]} Nxd4 {[%emt 0:00:01]} 22. Rxd4 {[%emt 0:00:13]} Rxd4 {[%emt 0:
00:15]} 23. cxd4 {[%emt 0:00:00]} Rd8 {[%emt 0:00:02]} 24. Be4 {[%emt 0:00:00]}
Rd7 {[%emt 0:00:01]} 25. Rd1 {[%emt 0:00:32]} f5 {[%emt 0:00:10]} 26. Bb1 {
[%emt 0:00:19]} Kf7 {[%emt 0:00:02]} 27. a3 {[%emt 0:00:23]} Kf6 {[%emt 0:00:
01]} 28. Ba2 {[%emt 0:00:03]} Nc6 {[%emt 0:00:14]} 29. d5 {[%emt 0:00:03]} Ne5
{[%emt 0:00:01]} 30. Kg2 {[%emt 0:00:07]} 1/2-1/2

[Event "Saint Louis Blitz 2020"]
[Site "Saint Louis"]
[Date "2020.09.18"]
[Round "9"]
[White "Dominguez Perez, Leinier"]
[Black "Xiong, Jeffery"]
[Result "1-0"]
[ECO "B33"]
[WhiteElo "2758"]
[BlackElo "2709"]
[Annotator "ChessBase"]
[PlyCount "93"]
[EventDate "2020.09.18"]
[EventType "blitz"]
[EventCountry "USA"]
[SourceTitle "playchess.com"]
[Source "ChessBase"]
[SourceQuality "1"]
[TimeControl "300+3"]

1. e4 {[%emt 0:00:03]} c5 {[%emt 0:00:03]} 2. Nf3 {[%emt 0:00:01]} Nc6 {
[%emt 0:00:01]} 3. d4 {[%emt 0:00:01]} cxd4 {[%emt 0:00:00]} 4. Nxd4 {[%emt 0:
00:01]} Nf6 {[%emt 0:00:00]} 5. Nc3 {[%emt 0:00:01]} e5 {[%emt 0:00:00]} 6.
Ndb5 {[%emt 0:00:01]} d6 {[%emt 0:00:01]} 7. Bg5 {[%emt 0:00:02]} a6 {[%emt 0:
00:01]} 8. Na3 {[%emt 0:00:01]} b5 {[%emt 0:00:03]} 9. Nd5 {[%emt 0:00:01]} Be7
{[%emt 0:00:02]} 10. Bxf6 {[%emt 0:00:01]} Bxf6 {[%emt 0:00:00]} 11. c3 {
[%emt 0:00:02]} Bg5 {[%emt 0:00:00]} 12. Nc2 {[%emt 0:00:02]} Rb8 {[%emt 0:00:
01]} 13. a4 {[%emt 0:00:14]} bxa4 {[%emt 0:00:00]} 14. Ncb4 {[%emt 0:00:00]}
Nxb4 {[%emt 0:00:01]} 15. cxb4 {[%emt 0:00:01]} O-O {[%emt 0:00:01]} 16. Rxa4 {
[%emt 0:00:04]} a5 {[%emt 0:00:05]} 17. h4 {[%emt 0:00:16]} Bh6 {[%emt 0:00:02]
} 18. b5 {[%emt 0:00:02]} Bd7 {[%emt 0:00:00]} 19. Nc3 {[%emt 0:00:02]} d5 {
[%emt 0:00:01]} 20. exd5 {[%emt 0:00:01]} e4 {[%emt 0:00:03]} 21. Be2 {[%emt 0:
00:25]} e3 {[%emt 0:00:02]} 22. f4 {[%emt 0:00:14]} g6 {[%emt 0:00:01]} 23. h5
{[%emt 0:00:23]} Bg7 {[%emt 0:00:02]} 24. h6 {[%emt 0:00:01]} Bh8 {[%emt 0:00:
09]} 25. d6 {[%emt 0:00:14]} Rb6 {[%emt 0:00:34]} 26. Rxa5 {[%emt 0:00:32]} Bc8
{[%emt 0:00:01]} 27. d7 {[%emt 0:00:24]} Bxd7 {[%emt 0:00:10]} 28. Ra6 {
[%emt 0:00:01]} Rb7 {[%emt 0:02:42]} 29. O-O {[%emt 0:00:52]} Bxc3 {[%emt 0:01:
10]} 30. bxc3 {[%emt 0:00:05]} Bxb5 {[%emt 0:00:00]} 31. Rd6 {[%emt 0:00:18]}
Qh4 {[%emt 0:00:02]} 32. c4 {[%emt 0:00:31]} Be8 {[%emt 0:00:01]} 33. c5 {
[%emt 0:00:40]} Qxh6 {[%emt 0:00:01]} 34. c6 {[%emt 0:00:07]} Rc7 {[%emt 0:00:
01]} 35. Qd5 {[%emt 0:00:17]} Qg7 {[%emt 0:00:01]} 36. Qc5 {[%emt 0:00:33]} Qb2
{[%emt 0:00:05]} 37. Bf3 {[%emt 0:00:01]} Re7 {[%emt 0:01:11]} 38. c7 {[%emt 0:
00:09]} Bb5 {[%emt 0:00:00]} 39. Rd8 {[%emt 0:00:04]} Ree8 {[%emt 0:00:04]} 40.
Qxf8+ {[%emt 0:00:06]} Rxf8 {[%emt 0:00:06]} 41. c8=Q {[%emt 0:00:01]} Rxd8 {
[%emt 0:00:03]} 42. Qxd8+ {[%emt 0:00:01]} Kg7 {[%emt 0:00:00]} 43. Qb6 {
[%emt 0:00:06]} h5 {[%emt 0:00:09]} 44. Kh2 {[%emt 0:00:02]} e2 {[%emt 0:00:03]
} 45. Re1 {[%emt 0:00:02]} Qd2 {[%emt 0:00:01]} 46. Qf2 {[%emt 0:00:05]} Qxf4+
{[%emt 0:00:00]} 47. Kg1 {[%emt 0:00:01]} 1-0

[Event "Saint Louis Blitz 2020"]
[Site "Saint Louis"]
[Date "2020.09.18"]
[Round "9"]
[White "Firouzja, Alireza"]
[Black "Harikrishna, Pentala"]
[Result "1-0"]
[ECO "B12"]
[WhiteElo "2728"]
[BlackElo "2732"]
[Annotator "ChessBase"]
[PlyCount "69"]
[EventDate "2020.09.18"]
[EventType "blitz"]
[EventCountry "USA"]
[SourceTitle "playchess.com"]
[Source "ChessBase"]
[SourceQuality "1"]
[TimeControl "300+3"]

1. e4 {[%emt 0:00:03]} c6 {[%emt 0:00:03]} 2. d4 {[%emt 0:00:06]} d5 {[%emt 0:
00:01]} 3. e5 {[%emt 0:00:01]} Bf5 {[%emt 0:00:02]} 4. h4 {[%emt 0:00:08]} h5 {
[%emt 0:00:02]} 5. Bd3 {[%emt 0:00:01]} Bxd3 {[%emt 0:00:06]} 6. Qxd3 {[%emt 0:
00:00]} Qa5+ {[%emt 0:00:09]} 7. Nd2 {[%emt 0:00:01]} e6 {[%emt 0:00:03]} 8.
Ngf3 {[%emt 0:00:04]} Qa6 {[%emt 0:00:13]} 9. c4 {[%emt 0:00:12]} Nh6 {[%emt 0:
00:25]} 10. O-O {[%emt 0:00:14]} Nf5 {[%emt 0:00:10]} 11. b3 {[%emt 0:00:34]}
c5 {[%emt 0:00:23]} 12. Qb1 {[%emt 0:00:18]} dxc4 {[%emt 0:00:32]} 13. d5 {
[%emt 0:00:01]} c3 {[%emt 0:00:15]} 14. dxe6 {[%emt 0:01:23]} Qxe6 {[%emt 0:00:
23]} 15. Ng5 {[%emt 0:00:37]} Qg6 {[%emt 0:00:25]} 16. e6 {[%emt 0:00:37]} cxd2
{[%emt 0:00:46]} 17. exf7+ {[%emt 0:00:05]} Kd7 {[%emt 0:00:06]} 18. Qe4 {
[%emt 0:00:34]} Nc6 {[%emt 0:00:10]} 19. Bxd2 {[%emt 0:00:01]} Bd6 {[%emt 0:00:
29]} 20. Rad1 {[%emt 0:00:09]} Kc7 {[%emt 0:00:42]} 21. Bf4 {[%emt 0:00:18]}
Bxf4 {[%emt 0:00:04]} 22. Qxf4+ {[%emt 0:00:00]} Kb6 {[%emt 0:00:00]} 23. Rfe1
{[%emt 0:00:03]} Nfd4 {[%emt 0:00:10]} 24. b4 {[%emt 0:00:05]} Qf6 {[%emt 0:00:
19]} 25. bxc5+ {[%emt 0:00:05]} Kb5 {[%emt 0:00:01]} 26. Rb1+ {[%emt 0:00:11]}
Ka6 {[%emt 0:00:10]} 27. Qg3 {[%emt 0:00:13]} b5 {[%emt 0:00:05]} 28. cxb6 {
[%emt 0:00:09]} axb6 {[%emt 0:00:01]} 29. Qc7 {[%emt 0:00:03]} Nb5 {[%emt 0:00:
03]} 30. Rxb5 {[%emt 0:00:05]} Kxb5 {[%emt 0:00:01]} 31. Rb1+ {[%emt 0:00:01]}
Nb4 {[%emt 0:00:00]} 32. Ne4 {[%emt 0:00:02]} Qd4 {[%emt 0:00:08]} 33. Nd6+ {
[%emt 0:00:06]} Ka4 {[%emt 0:00:04]} 34. Qd7+ {[%emt 0:00:02]} Ka3 {[%emt 0:00:
03]} 35. Nb5+ {[%emt 0:00:02]} 1-0